[Event "*** SCC Grand Prix: Titled Tuesday Blitz"]
[Site "Chess.com"]
[Date "2020.07.14"]
[Round "3"]
[White "BakaPG"]
[Black "vova-79"]
[Result "1/2-1/2"]
[WhiteElo "2642"]
[BlackElo "2470"]
[TimeControl "180+1"]
[EndTime "10:28:38 PDT"]
[Termination "Game drawn by agreement"]

1. e4 {[%clk 0:03:00.9]} 1... e6 {[%clk 0:02:58.9]} 2. d4 {[%clk 0:03:00.3]}
2... d5 {[%clk 0:02:59.3]} 3. e5 {[%clk 0:03:00.9]} 3... c5 {[%clk 0:02:58.7]}
4. c3 {[%clk 0:03:01.6]} 4... Nc6 {[%clk 0:02:59.1]} 5. Nf3 {[%clk 0:03:01.6]}
5... Bd7 {[%clk 0:02:59.7]} 6. Na3 {[%clk 0:02:55]} 6... cxd4 {[%clk 0:02:52.8]}
7. cxd4 {[%clk 0:02:53.5]} 7... Bb4+ {[%clk 0:02:51.4]} 8. Bd2 {[%clk
0:02:53.2]} 8... Bxd2+ {[%clk 0:02:51.3]} 9. Qxd2 {[%clk 0:02:52.4]} 9... Nge7
{[%clk 0:02:51.7]} 10. Bd3 {[%clk 0:02:50.6]} 10... Qa5 {[%clk 0:02:46]} 11.
Qxa5 {[%clk 0:02:44.9]} 11... Nxa5 {[%clk 0:02:46.9]} 12. Kd2 {[%clk 0:02:41.4]}
12... h6 {[%clk 0:02:40.3]} 13. h4 {[%clk 0:02:39.1]} 13... O-O {[%clk
0:02:36.7]} 14. Rac1 {[%clk 0:02:35.8]} 14... Rac8 {[%clk 0:02:34.7]} 15. b3
{[%clk 0:02:35.3]} 15... Rxc1 {[%clk 0:02:33.5]} 16. Rxc1 {[%clk 0:02:34.1]}
16... Rc8 {[%clk 0:02:33.3]} 17. Rxc8+ {[%clk 0:02:27.4]} 17... Nxc8 {[%clk
0:02:32.7]} 18. h5 {[%clk 0:02:26.4]} 18... Kf8 {[%clk 0:02:31.1]} 19. Kc3
{[%clk 0:02:25.1]} 19... Ke7 {[%clk 0:02:28]} 20. g4 {[%clk 0:02:21.3]} 20...
Nc6 {[%clk 0:02:25.2]} 21. Nc2 {[%clk 0:02:16.4]} 21... f6 {[%clk 0:02:19.8]}
22. Nce1 {[%clk 0:02:06.1]} 22... fxe5 {[%clk 0:02:01]} 23. Nxe5 {[%clk
0:02:02]} 23... Nd6 {[%clk 0:01:50.9]} 24. f4 {[%clk 0:02:00.4]} 24... Be8
{[%clk 0:01:48.1]} 25. N1f3 {[%clk 0:01:57.4]} 25... Nxe5 {[%clk 0:01:42.7]} 26.
dxe5 {[%clk 0:01:50.4]} 26... Nc8 {[%clk 0:01:37.6]} 27. Kd4 {[%clk 0:01:44.3]}
27... Nb6 {[%clk 0:01:36.2]} 28. Nh4 {[%clk 0:01:38.6]} 28... Na8 {[%clk
0:01:32.7]} 29. f5 {[%clk 0:01:37]} 29... Nc7 {[%clk 0:01:23.9]} 30. Ng2 {[%clk
0:01:35.8]} 30... exf5 {[%clk 0:01:20.4]} 31. Bxf5 {[%clk 0:01:33.2]} 31... Nb5+
{[%clk 0:01:17.5]} 32. Kd3 {[%clk 0:01:30.8]} 32... Bc6 {[%clk 0:00:53.2]} 33.
Nf4 {[%clk 0:01:28.2]} 33... Nc7 {[%clk 0:00:48.8]} 34. a4 {[%clk 0:01:20.1]}
34... b6 {[%clk 0:00:45.4]} 35. Kd4 {[%clk 0:01:19.1]} 35... a5 {[%clk
0:00:43.4]} 36. Bc8 {[%clk 0:00:59.9]} 36... Kf7 {[%clk 0:00:41.9]} 37. e6+
{[%clk 0:00:50.3]} 37... Kf6 {[%clk 0:00:40.3]} 38. Bd7 {[%clk 0:00:50.2]} 38...
Bb7 {[%clk 0:00:39]} 39. Ke3 {[%clk 0:00:34.6]} 39... Ba8 {[%clk 0:00:35.4]} 40.
Kd3 {[%clk 0:00:33.6]} 40... Bb7 {[%clk 0:00:34.1]} 41. Ke3 {[%clk 0:00:32]}
41... Ba8 {[%clk 0:00:33.8]} 42. Bc8 {[%clk 0:00:32.2]} 42... Bc6 {[%clk
0:00:31.2]} 43. Kd4 {[%clk 0:00:31.9]} 43... Ba8 {[%clk 0:00:29.4]} 44. Nd3
{[%clk 0:00:23]} 1/2-1/2

[Event "*** SCC Grand Prix: Titled Tuesday Blitz"]
[Site "Chess.com"]
[Date "2020.07.14"]
[Round "3"]
[White "Zurability"]
[Black "sergoy"]
[Result "0-1"]
[WhiteElo "2588"]
[BlackElo "2809"]
[TimeControl "180+1"]
[EndTime "10:28:39 PDT"]
[Termination "sergoy won on time"]

1. Nf3 {[%clk 0:03:00.9]} 1... Nf6 {[%clk 0:02:59.6]} 2. c4 {[%clk 0:03:00.3]}
2... g6 {[%clk 0:02:58.5]} 3. Nc3 {[%clk 0:02:58.8]} 3... Bg7 {[%clk 0:02:56.4]}
4. e4 {[%clk 0:02:59]} 4... d6 {[%clk 0:02:56.4]} 5. d4 {[%clk 0:02:56.9]} 5...
O-O {[%clk 0:02:56.6]} 6. Be2 {[%clk 0:02:56.1]} 6... c5 {[%clk 0:02:56.7]} 7.
d5 {[%clk 0:02:54.4]} 7... e6 {[%clk 0:02:56.8]} 8. O-O {[%clk 0:02:53.5]} 8...
exd5 {[%clk 0:02:57.1]} 9. cxd5 {[%clk 0:02:54.4]} 9... a6 {[%clk 0:02:54.8]}
10. a4 {[%clk 0:02:52.8]} 10... Re8 {[%clk 0:02:54.9]} 11. Nd2 {[%clk
0:02:52.7]} 11... Nbd7 {[%clk 0:02:55.1]} 12. Re1 {[%clk 0:02:51.7]} 12... Qe7
{[%clk 0:02:53.1]} 13. Bf1 {[%clk 0:02:35.8]} 13... b6 {[%clk 0:02:47.6]} 14.
Nc4 {[%clk 0:02:34.2]} 14... Rb8 {[%clk 0:02:45.1]} 15. Bf4 {[%clk 0:01:35.6]}
15... Ne5 {[%clk 0:02:39.3]} 16. Bxe5 {[%clk 0:01:28.9]} 16... dxe5 {[%clk
0:02:39.5]} 17. Rb1 {[%clk 0:01:26]} 17... Bd7 {[%clk 0:02:35.1]} 18. b4 {[%clk
0:01:22.3]} 18... b5 {[%clk 0:02:29.4]} 19. axb5 {[%clk 0:01:18]} 19... axb5
{[%clk 0:02:29.1]} 20. Na5 {[%clk 0:00:56.3]} 20... c4 {[%clk 0:02:29.2]} 21. g3
{[%clk 0:00:38.6]} 21... Qd6 {[%clk 0:02:27.6]} 22. Bg2 {[%clk 0:00:38.1]} 22...
Bf8 {[%clk 0:02:27.1]} 23. Qd2 {[%clk 0:00:36.2]} 23... Qb6 {[%clk 0:02:27.1]}
24. h3 {[%clk 0:00:25.6]} 24... Rec8 {[%clk 0:02:18.5]} 25. Kh2 {[%clk
0:00:24.9]} 25... Bd6 {[%clk 0:01:54.6]} 26. Rf1 {[%clk 0:00:22.7]} 26... Bxb4
{[%clk 0:01:04.7]} 27. Rxb4 {[%clk 0:00:22.3]} 27... Qxa5 {[%clk 0:01:04.9]} 28.
Rfb1 {[%clk 0:00:23.2]} 28... Ne8 {[%clk 0:01:04.4]} 29. f4 {[%clk 0:00:22.7]}
29... Qc7 {[%clk 0:00:55]} 30. Nxb5 {[%clk 0:00:20.2]} 30... Bxb5 {[%clk
0:00:54.6]} 31. Rxb5 {[%clk 0:00:21.1]} 31... Rxb5 {[%clk 0:00:55.2]} 32. Rxb5
{[%clk 0:00:21.7]} 32... c3 {[%clk 0:00:55.6]} 33. Qc1 {[%clk 0:00:21.6]} 33...
c2 {[%clk 0:00:48.5]} 34. Rb3 {[%clk 0:00:18.9]} 34... Qc4 {[%clk 0:00:43.6]}
35. Re3 {[%clk 0:00:13.8]} 35... Qd4 {[%clk 0:00:43]} 36. Re1 {[%clk 0:00:10.4]}
36... Nd6 {[%clk 0:00:40.6]} 37. Kh1 {[%clk 0:00:04.4]} 37... Rc3 {[%clk
0:00:39.9]} 38. Kh2 {[%clk 0:00:04.2]} 38... Qd3 {[%clk 0:00:39.7]} 39. Kh1
{[%clk 0:00:04.1]} 39... Qxg3 {[%clk 0:00:37.4]} 40. fxe5 {[%clk 0:00:04]} 40...
Qxe1+ {[%clk 0:00:37.5]} 41. Qxe1 {[%clk 0:00:02.6]} 41... c1=Q {[%clk
0:00:38.4]} 42. Qxc1 {[%clk 0:00:02.9]} 42... Rxc1+ {[%clk 0:00:38.3]} 43. Kh2
{[%clk 0:00:03.8]} 43... Nc4 {[%clk 0:00:38.5]} 0-1

[Event "*** SCC Grand Prix: Titled Tuesday Blitz"]
[Site "Chess.com"]
[Date "2020.07.14"]
[Round "3"]
[White "ChelsieMonica"]
[Black "oskariot"]
[Result "1-0"]
[WhiteElo "2429"]
[BlackElo "2640"]
[TimeControl "180+1"]
[EndTime "10:28:39 PDT"]
[Termination "ChelsieMonica won by resignation"]

1. c4 {[%clk 0:03:00.9]} 1... Nf6 {[%clk 0:02:58.8]} 2. Nc3 {[%clk 0:02:59.7]}
2... c5 {[%clk 0:02:51.4]} 3. g3 {[%clk 0:02:59.3]} 3... g6 {[%clk 0:02:50.7]}
4. Nf3 {[%clk 0:02:59.2]} 4... Bg7 {[%clk 0:02:48.8]} 5. Bg2 {[%clk 0:02:59.5]}
5... O-O {[%clk 0:02:47.6]} 6. O-O {[%clk 0:02:58.7]} 6... Nc6 {[%clk
0:02:47.5]} 7. d4 {[%clk 0:02:46.5]} 7... cxd4 {[%clk 0:02:48.4]} 8. Nxd4 {[%clk
0:02:47]} 8... d6 {[%clk 0:02:48.9]} 9. Nxc6 {[%clk 0:02:41.5]} 9... bxc6 {[%clk
0:02:49.8]} 10. Bxc6 {[%clk 0:02:41.7]} 10... Rb8 {[%clk 0:02:49.7]} 11. Bg2
{[%clk 0:02:40.9]} 11... Qa5 {[%clk 0:02:49.6]} 12. Nb5 {[%clk 0:02:09.9]} 12...
Bb7 {[%clk 0:02:28.6]} 13. Bd2 {[%clk 0:01:55.1]} 13... Qa6 {[%clk 0:02:23.2]}
14. Bxb7 {[%clk 0:01:40.7]} 14... Qxb7 {[%clk 0:02:21.1]} 15. Bc3 {[%clk
0:01:40.4]} 15... Rfc8 {[%clk 0:02:18.4]} 16. Na3 {[%clk 0:01:27.6]} 16... d5
{[%clk 0:01:44.5]} 17. Be5 {[%clk 0:01:14.4]} 17... Ra8 {[%clk 0:01:42.1]} 18.
Rc1 {[%clk 0:00:55]} 18... dxc4 {[%clk 0:01:35.7]} 19. Nxc4 {[%clk 0:00:55.9]}
19... Qa6 {[%clk 0:01:35.7]} 20. Qb3 {[%clk 0:00:50.8]} 20... h5 {[%clk
0:01:21.7]} 21. Rfd1 {[%clk 0:00:47.8]} 21... h4 {[%clk 0:01:21.5]} 22. a3
{[%clk 0:00:38]} 22... h3 {[%clk 0:01:19]} 23. Qf3 {[%clk 0:00:38]} 23... Qb5
{[%clk 0:01:04.4]} 24. b3 {[%clk 0:00:33.5]} 24... a5 {[%clk 0:01:02.7]} 25. a4
{[%clk 0:00:33.3]} 25... Qa6 {[%clk 0:01:01.9]} 26. Bd4 {[%clk 0:00:32.6]} 26...
Qe6 {[%clk 0:00:57.1]} 27. Nb6 {[%clk 0:00:30.5]} 27... Rab8 {[%clk 0:00:35.2]}
28. Nxc8 {[%clk 0:00:29.8]} 28... Rxc8 {[%clk 0:00:36.1]} 29. Rxc8+ {[%clk
0:00:29.6]} 29... Qxc8 {[%clk 0:00:37]} 30. e4 {[%clk 0:00:21.7]} 30... Qc2
{[%clk 0:00:35.1]} 31. Qd3 {[%clk 0:00:18.1]} 31... Qc6 {[%clk 0:00:31.9]} 32.
Bb2 {[%clk 0:00:16.7]} 32... Nxe4 {[%clk 0:00:28.1]} 33. Bxg7 {[%clk 0:00:16]}
33... Kxg7 {[%clk 0:00:12.5]} 34. f3 {[%clk 0:00:16.2]} 34... Nf6 {[%clk
0:00:12.4]} 35. Kf2 {[%clk 0:00:14.8]} 35... Qc5+ {[%clk 0:00:12]} 36. Qe3
{[%clk 0:00:15.2]} 36... Qd6 {[%clk 0:00:10.4]} 37. Rxd6 {[%clk 0:00:15]} 1-0

[Event "*** SCC Grand Prix: Titled Tuesday Blitz"]
[Site "Chess.com"]
[Date "2020.07.14"]
[Round "3"]
[White "13MiRacLe"]
[Black "marianokar"]
[Result "1-0"]
[WhiteElo "2630"]
[BlackElo "2404"]
[TimeControl "180+1"]
[EndTime "10:28:42 PDT"]
[Termination "13MiRacLe won on time"]

1. e4 {[%clk 0:03:00.9]} 1... e5 {[%clk 0:02:58.7]} 2. Nf3 {[%clk 0:03:01.1]}
2... Nc6 {[%clk 0:02:59.1]} 3. Bb5 {[%clk 0:03:01.8]} 3... Nf6 {[%clk
0:02:58.9]} 4. O-O {[%clk 0:03:01.4]} 4... Nxe4 {[%clk 0:02:58.5]} 5. Re1 {[%clk
0:03:00.9]} 5... Nd6 {[%clk 0:02:58.7]} 6. a4 {[%clk 0:03:01.3]} 6... Be7 {[%clk
0:02:57.8]} 7. Nc3 {[%clk 0:03:00.7]} 7... O-O {[%clk 0:02:57.2]} 8. d4 {[%clk
0:02:58.9]} 8... Nxb5 {[%clk 0:01:38.8]} 9. axb5 {[%clk 0:02:51.7]} 9... Nxd4
{[%clk 0:01:38.7]} 10. Nxd4 {[%clk 0:02:01]} 10... exd4 {[%clk 0:01:38.1]} 11.
Qxd4 {[%clk 0:01:59.4]} 11... Bf6 {[%clk 0:01:37.5]} 12. Qe3 {[%clk 0:01:46]}
12... d5 {[%clk 0:01:26.6]} 13. Qc5 {[%clk 0:01:31.8]} 13... b6 {[%clk
0:00:51.4]} 14. Qxd5 {[%clk 0:01:18.2]} 14... Bxc3 {[%clk 0:00:43.6]} 15. Qxd8
{[%clk 0:01:18]} 15... Rxd8 {[%clk 0:00:44.5]} 16. bxc3 {[%clk 0:01:18.5]} 16...
Bf5 {[%clk 0:00:40.2]} 17. Bf4 {[%clk 0:01:18]} 17... Rd7 {[%clk 0:00:36]} 18.
Rxa7 {[%clk 0:01:14.1]} 18... Rad8 {[%clk 0:00:23.3]} 19. Rxc7 {[%clk
0:00:51.3]} 19... Rd1 {[%clk 0:00:19.5]} 20. Kf1 {[%clk 0:00:51.3]} 20... Bxc2
{[%clk 0:00:19.2]} 21. Rxd1 {[%clk 0:00:46.8]} 21... Rxd1+ {[%clk 0:00:14.7]}
22. Ke2 {[%clk 0:00:46.9]} 22... h6 {[%clk 0:00:11.8]} 23. Be3 {[%clk
0:00:29.7]} 23... Rd5 {[%clk 0:00:10.2]} 24. c4 {[%clk 0:00:27]} 24... Bd3+
{[%clk 0:00:07.8]} 25. Ke1 {[%clk 0:00:20.5]} 25... Re5 {[%clk 0:00:03.2]} 26.
Kd2 {[%clk 0:00:19.4]} 26... Bf1 {[%clk 0:00:03]} 27. Bxb6 {[%clk 0:00:15.5]}
27... Bxg2 {[%clk 0:00:01.8]} 28. Be3 {[%clk 0:00:16]} 1-0

[Event "*** SCC Grand Prix: Titled Tuesday Blitz"]
[Site "Chess.com"]
[Date "2020.07.14"]
[Round "3"]
[White "AccioChess"]
[Black "Misticpikachu"]
[Result "1-0"]
[WhiteElo "2479"]
[BlackElo "2228"]
[TimeControl "180+1"]
[EndTime "10:28:43 PDT"]
[Termination "AccioChess won by checkmate"]

1. Nf3 {[%clk 0:03:00.9]} 1... d5 {[%clk 0:02:57.6]} 2. g3 {[%clk 0:03:01.8]}
2... e6 {[%clk 0:02:58.1]} 3. Bg2 {[%clk 0:03:02.7]} 3... Nf6 {[%clk 0:02:58.6]}
4. O-O {[%clk 0:03:03.6]} 4... Be7 {[%clk 0:02:59.2]} 5. d3 {[%clk 0:03:04.5]}
5... O-O {[%clk 0:02:59.9]} 6. Nbd2 {[%clk 0:03:05.4]} 6... c5 {[%clk
0:03:00.4]} 7. e4 {[%clk 0:03:06.3]} 7... Nc6 {[%clk 0:03:00.4]} 8. Qe2 {[%clk
0:03:06.6]} 8... b5 {[%clk 0:02:53]} 9. Re1 {[%clk 0:03:06.2]} 9... Bb7 {[%clk
0:02:52.1]} 10. e5 {[%clk 0:03:06.1]} 10... Nd7 {[%clk 0:02:51.9]} 11. Nf1
{[%clk 0:03:07]} 11... Qc7 {[%clk 0:02:51.8]} 12. h4 {[%clk 0:03:02.7]} 12...
Rfc8 {[%clk 0:02:51.4]} 13. h5 {[%clk 0:02:55.9]} 13... h6 {[%clk 0:02:49.8]}
14. N1h2 {[%clk 0:02:56.4]} 14... Qd8 {[%clk 0:02:49]} 15. Ng4 {[%clk
0:02:56.7]} 15... Bf8 {[%clk 0:02:49.5]} 16. Bf4 {[%clk 0:02:49.5]} 16... a5
{[%clk 0:02:45.7]} 17. c3 {[%clk 0:02:38]} 17... Rab8 {[%clk 0:02:27.4]} 18. Qd2
{[%clk 0:02:34.3]} 18... d4 {[%clk 0:02:26.5]} 19. cxd4 {[%clk 0:02:32.2]} 19...
Nxd4 {[%clk 0:02:25.5]} 20. Nxd4 {[%clk 0:02:31.6]} 20... cxd4 {[%clk
0:02:26.4]} 21. a3 {[%clk 0:02:30.5]} 21... Bxg2 {[%clk 0:02:25.3]} 22. Kxg2
{[%clk 0:02:31.4]} 22... b4 {[%clk 0:02:21.2]} 23. a4 {[%clk 0:02:27.5]} 23...
b3 {[%clk 0:02:04.5]} 24. Rec1 {[%clk 0:02:25.2]} 24... Bb4 {[%clk 0:01:36.6]}
25. Qe2 {[%clk 0:02:24.5]} 25... Rxc1 {[%clk 0:01:20.9]} 26. Rxc1 {[%clk
0:02:23.5]} 26... Nc5 {[%clk 0:01:21.5]} 27. Qf3 {[%clk 0:02:22.8]} 27... Qd5
{[%clk 0:01:16.8]} 28. Qxd5 {[%clk 0:02:15.2]} 28... exd5 {[%clk 0:01:17.7]} 29.
e6 {[%clk 0:02:14.9]} 29... Nxd3 {[%clk 0:01:01.2]} 30. exf7+ {[%clk 0:02:04.1]}
30... Kxf7 {[%clk 0:00:50.4]} 31. Ne5+ {[%clk 0:02:04]} 31... Nxe5 {[%clk
0:00:50.8]} 32. Bxe5 {[%clk 0:02:04.8]} 32... Re8 {[%clk 0:00:42.1]} 33. Bxd4
{[%clk 0:02:04.4]} 33... Re7 {[%clk 0:00:33.2]} 34. Kf3 {[%clk 0:01:59.7]} 34...
g6 {[%clk 0:00:33]} 35. hxg6+ {[%clk 0:01:53.6]} 35... Kxg6 {[%clk 0:00:33.9]}
36. Rc6+ {[%clk 0:01:53.9]} 36... Kh7 {[%clk 0:00:29.9]} 37. Be3 {[%clk
0:01:44.7]} 37... Rf7+ {[%clk 0:00:30]} 38. Ke2 {[%clk 0:01:43.8]} 38... Re7
{[%clk 0:00:30.2]} 39. Kd3 {[%clk 0:01:39.8]} 39... Kg7 {[%clk 0:00:17.6]} 40.
Bxh6+ {[%clk 0:01:38.7]} 40... Kf7 {[%clk 0:00:17.7]} 41. Be3 {[%clk 0:01:39.2]}
41... Ke8 {[%clk 0:00:10.7]} 42. Bc5 {[%clk 0:01:35.9]} 42... Rf7 {[%clk
0:00:06]} 43. Bd4 {[%clk 0:01:27.4]} 43... Rf3+ {[%clk 0:00:04.4]} 44. Be3
{[%clk 0:01:25.8]} 44... Rf7 {[%clk 0:00:04.7]} 45. Ra6 {[%clk 0:01:23.3]} 45...
Kd7 {[%clk 0:00:02.1]} 46. Ra7+ {[%clk 0:01:22.9]} 46... Ke6 {[%clk 0:00:02.7]}
47. Rxf7 {[%clk 0:01:23.1]} 47... Kxf7 {[%clk 0:00:03.6]} 48. Bd2 {[%clk
0:01:22.6]} 48... Ke6 {[%clk 0:00:01.8]} 49. Bxb4 {[%clk 0:01:22]} 49... axb4
{[%clk 0:00:02.7]} 50. a5 {[%clk 0:01:22.3]} 50... Kd6 {[%clk 0:00:03]} 51. g4
{[%clk 0:01:22.6]} 51... Kc6 {[%clk 0:00:02.4]} 52. g5 {[%clk 0:01:22.8]} 52...
Kb5 {[%clk 0:00:03]} 53. g6 {[%clk 0:01:23.3]} 53... Kxa5 {[%clk 0:00:03.6]} 54.
g7 {[%clk 0:01:24.2]} 54... Kb5 {[%clk 0:00:02.7]} 55. g8=Q {[%clk 0:01:25.1]}
55... Ka5 {[%clk 0:00:02.9]} 56. Qb8 {[%clk 0:01:23.8]} 56... Ka4 {[%clk
0:00:03.8]} 57. Qb6 {[%clk 0:01:20.5]} 57... d4 {[%clk 0:00:04.7]} 58. Qa6#
{[%clk 0:01:20.7]} 1-0

[Event "*** SCC Grand Prix: Titled Tuesday Blitz"]
[Site "Chess.com"]
[Date "2020.07.14"]
[Round "3"]
[White "Arjun2002"]
[Black "OparinGrigoriy"]
[Result "1/2-1/2"]
[WhiteElo "2660"]
[BlackElo "2921"]
[TimeControl "180+1"]
[EndTime "10:28:45 PDT"]
[Termination "Game drawn by agreement"]

1. e4 {[%clk 0:03:00.9]} 1... e5 {[%clk 0:02:58.7]} 2. Nf3 {[%clk 0:03:01.1]}
2... Nc6 {[%clk 0:02:59.1]} 3. Bc4 {[%clk 0:03:01.2]} 3... Nf6 {[%clk 0:02:59]}
4. d3 {[%clk 0:03:01]} 4... h6 {[%clk 0:02:59]} 5. c3 {[%clk 0:03:01.1]} 5... g5
{[%clk 0:02:58]} 6. Nbd2 {[%clk 0:02:56.1]} 6... g4 {[%clk 0:02:40.5]} 7. Nh4
{[%clk 0:02:45.5]} 7... d5 {[%clk 0:02:41.1]} 8. exd5 {[%clk 0:02:44.6]} 8...
Nxd5 {[%clk 0:02:42]} 9. g3 {[%clk 0:02:36.3]} 9... Nb6 {[%clk 0:02:34.1]} 10.
Bb3 {[%clk 0:02:16.9]} 10... Qxd3 {[%clk 0:02:31.9]} 11. Bc2 {[%clk 0:02:07.2]}
11... Qd8 {[%clk 0:02:24.2]} 12. Qe2 {[%clk 0:02:05.7]} 12... Be6 {[%clk
0:02:22.8]} 13. Nf5 {[%clk 0:01:59.8]} 13... Qd7 {[%clk 0:02:12.2]} 14. Ne4
{[%clk 0:01:57.3]} 14... Nd5 {[%clk 0:02:07.4]} 15. Ne3 {[%clk 0:01:31]} 15...
Be7 {[%clk 0:02:02.2]} 16. O-O {[%clk 0:01:22.2]} 16... O-O-O {[%clk 0:01:55.5]}
17. Rd1 {[%clk 0:01:15.8]} 17... f5 {[%clk 0:01:51.9]} 18. Nxd5 {[%clk
0:01:05.5]} 18... Bxd5 {[%clk 0:01:52.8]} 19. Nd2 {[%clk 0:00:55.9]} 19... Qe6
{[%clk 0:01:51.4]} 20. b4 {[%clk 0:00:49.8]} 20... h5 {[%clk 0:01:48.4]} 21. Bb2
{[%clk 0:00:42]} 21... Bf6 {[%clk 0:00:29.6]} 22. c4 {[%clk 0:00:35]} 22... Nd4
{[%clk 0:00:29.9]} 23. Bxd4 {[%clk 0:00:32.8]} 23... exd4 {[%clk 0:00:30.8]} 24.
Qd3 {[%clk 0:00:27.3]} 24... Be4 {[%clk 0:00:19.7]} 25. Nxe4 {[%clk 0:00:26.8]}
25... fxe4 {[%clk 0:00:20.6]} 26. Qxe4 {[%clk 0:00:26.8]} 26... Qxe4 {[%clk
0:00:20.4]} 27. Bxe4 {[%clk 0:00:27.7]} 27... d3 {[%clk 0:00:20.7]} 28. Rac1
{[%clk 0:00:19.1]} 28... d2 {[%clk 0:00:20.9]} 29. Rc2 {[%clk 0:00:19.3]} 29...
Bg5 {[%clk 0:00:19.5]} 30. Kf1 {[%clk 0:00:16.7]} 30... Rhe8 {[%clk 0:00:19.3]}
31. Bg6 {[%clk 0:00:15.7]} 31... Kb8 {[%clk 0:00:19.9]} 32. Bxe8 {[%clk
0:00:15]} 32... Rxe8 {[%clk 0:00:20.3]} 33. Rcxd2 {[%clk 0:00:15.3]} 33... Bxd2
{[%clk 0:00:19.9]} 34. Rxd2 {[%clk 0:00:16.2]} 34... c6 {[%clk 0:00:20.8]} 35.
Re2 {[%clk 0:00:16]} 35... Rd8 {[%clk 0:00:18.8]} 36. Re5 {[%clk 0:00:16.1]}
36... Rd4 {[%clk 0:00:19.1]} 37. Rxh5 {[%clk 0:00:12.1]} 37... Rxc4 {[%clk
0:00:18.8]} 38. a3 {[%clk 0:00:12.5]} 38... b5 {[%clk 0:00:14.8]} 1/2-1/2

[Event "*** SCC Grand Prix: Titled Tuesday Blitz"]
[Site "Chess.com"]
[Date "2020.07.14"]
[Round "3"]
[White "Doraemon7"]
[Black "ditkin25"]
[Result "1-0"]
[WhiteElo "2636"]
[BlackElo "2407"]
[TimeControl "180+1"]
[EndTime "10:28:47 PDT"]
[Termination "Doraemon7 won by resignation"]

1. Nf3 {[%clk 0:03:00.9]} 1... Nf6 {[%clk 0:02:59.9]} 2. c4 {[%clk 0:03:00.6]}
2... g6 {[%clk 0:03:00.2]} 3. b3 {[%clk 0:03:00.3]} 3... Bg7 {[%clk 0:03:00.3]}
4. Bb2 {[%clk 0:03:00.9]} 4... d6 {[%clk 0:03:00.4]} 5. d4 {[%clk 0:03:00.6]}
5... O-O {[%clk 0:02:59.8]} 6. g3 {[%clk 0:03:00.8]} 6... e5 {[%clk 0:02:59.7]}
7. Bg2 {[%clk 0:02:58.3]} 7... Nc6 {[%clk 0:02:57.5]} 8. O-O {[%clk 0:02:53.9]}
8... a5 {[%clk 0:02:48.3]} 9. Nc3 {[%clk 0:02:47.1]} 9... exd4 {[%clk
0:02:45.8]} 10. Nxd4 {[%clk 0:02:48]} 10... Nxd4 {[%clk 0:02:45.5]} 11. Qxd4
{[%clk 0:02:48.9]} 11... Ng4 {[%clk 0:02:45.1]} 12. Qd2 {[%clk 0:02:48.2]} 12...
Re8 {[%clk 0:02:34]} 13. Nd5 {[%clk 0:02:44.7]} 13... c6 {[%clk 0:02:20.5]} 14.
Bxg7 {[%clk 0:02:39.9]} 14... Kxg7 {[%clk 0:02:21.4]} 15. Nc3 {[%clk 0:02:32.3]}
15... f5 {[%clk 0:02:00.3]} 16. Rfd1 {[%clk 0:02:28.4]} 16... Qf6 {[%clk
0:01:31.6]} 17. Rac1 {[%clk 0:02:07.8]} 17... Rd8 {[%clk 0:01:30.4]} 18. Qd4
{[%clk 0:01:51.7]} 18... Be6 {[%clk 0:01:15.7]} 19. Rd2 {[%clk 0:01:45.9]} 19...
Ne5 {[%clk 0:01:02.2]} 20. Rcd1 {[%clk 0:01:38.1]} 20... Nf7 {[%clk 0:01:02.4]}
21. e4 {[%clk 0:01:29.3]} 21... fxe4 {[%clk 0:00:50.3]} 22. Nxe4 {[%clk
0:01:26.5]} 22... Qxd4 {[%clk 0:00:50.5]} 23. Rxd4 {[%clk 0:01:26.5]} 23... d5
{[%clk 0:00:42.5]} 24. Nc5 {[%clk 0:01:26.3]} 24... Bg4 {[%clk 0:00:43.1]} 25.
f3 {[%clk 0:01:26.2]} 25... b6 {[%clk 0:00:43]} 26. Na4 {[%clk 0:01:20.5]} 26...
b5 {[%clk 0:00:19.7]} 27. cxb5 {[%clk 0:01:20.8]} 27... cxb5 {[%clk 0:00:20.6]}
28. Nc3 {[%clk 0:01:20.7]} 28... b4 {[%clk 0:00:18]} 29. Nxd5 {[%clk 0:01:21]}
29... Be6 {[%clk 0:00:18.1]} 30. Nc7 {[%clk 0:01:17.7]} 30... Re8 {[%clk
0:00:15.8]} 31. Nxe8+ {[%clk 0:01:14.6]} 31... Rxe8 {[%clk 0:00:16.7]} 32. Re1
{[%clk 0:01:15.5]} 32... Kf6 {[%clk 0:00:16.5]} 33. Rde4 {[%clk 0:01:14.9]}
33... Ng5 {[%clk 0:00:16.8]} 34. R4e3 {[%clk 0:01:14.9]} 34... Rd8 {[%clk
0:00:16.6]} 35. f4 {[%clk 0:01:14.9]} 35... Nh3+ {[%clk 0:00:17.1]} 36. Kf1
{[%clk 0:01:11.6]} 36... Bg4 {[%clk 0:00:17.4]} 37. Bxh3 {[%clk 0:01:07.1]}
37... Bxh3+ {[%clk 0:00:17.5]} 38. Kf2 {[%clk 0:01:08]} 38... Bg4 {[%clk
0:00:16.7]} 39. h3 {[%clk 0:00:56.4]} 39... Rd2+ {[%clk 0:00:16]} 40. Kg1 {[%clk
0:00:55.3]} 40... Bxh3 {[%clk 0:00:16.4]} 41. R1e2 {[%clk 0:00:55.6]} 41... Rd1+
{[%clk 0:00:16]} 42. Kh2 {[%clk 0:00:55.8]} 42... Bg4 {[%clk 0:00:15.6]} 43. Rc2
{[%clk 0:00:55.5]} 43... h5 {[%clk 0:00:15.1]} 44. Rc6+ {[%clk 0:00:55.1]} 44...
Kg7 {[%clk 0:00:15.4]} 45. Rc7+ {[%clk 0:00:54.2]} 45... Kh6 {[%clk 0:00:14.7]}
46. Ree7 {[%clk 0:00:54.3]} 46... Rd2+ {[%clk 0:00:14.2]} 47. Kg1 {[%clk
0:00:54.5]} 47... Rd1+ {[%clk 0:00:11.6]} 48. Kf2 {[%clk 0:00:54.9]} 48... Rd2+
{[%clk 0:00:12.2]} 49. Ke1 {[%clk 0:00:54.6]} 49... Rd1+ {[%clk 0:00:12.5]} 50.
Kf2 {[%clk 0:00:55.3]} 50... Rd2+ {[%clk 0:00:12.8]} 51. Ke3 {[%clk 0:00:56]}
51... Re2+ {[%clk 0:00:11.1]} 52. Kd3 {[%clk 0:00:56.6]} 52... Rxe7 {[%clk
0:00:10.7]} 53. Rxe7 {[%clk 0:00:57.5]} 53... Bf5+ {[%clk 0:00:09.9]} 54. Kc4
{[%clk 0:00:57]} 54... Bb1 {[%clk 0:00:10]} 55. Ra7 {[%clk 0:00:56.9]} 55...
Bxa2 {[%clk 0:00:09.8]} 56. Rxa5 {[%clk 0:00:57.5]} 56... Bb1 {[%clk 0:00:10.7]}
57. Kxb4 {[%clk 0:00:57.6]} 1-0